[Event "Titled Tuesday Blitz May 30 Late 2023"]
[White "Annaberdiyev, Meylis"]
[Black "Ibarra Jerez, Jose Carlos"]
[WhiteFideId "14000563"]
[BlackFideId "2226332"]
[WhiteElo "2416"]
[BlackElo "2638"]
[Result "0-1"]
[Round "03"]
[TimeControl "180+2"]
[Date "2023.05.31"]
[WhiteClock "0:00:14"]
[BlackClock "0:00:08"]

1. e4 {[%clk 0:03:00]}  c5 {[%clk 0:02:57]} 2. Nf3 {[%clk 0:03:00]}  Nc6 {[%clk 0:02:56]} 3. Bb5 {[%clk 0:02:59]}  e6 {[%clk 0:02:56]} 4. O-O {[%clk 0:02:58]}  Nge7 {[%clk 0:02:56]} 5. c3 {[%clk 0:02:43]}  a6 {[%clk 0:02:55]} 6. Be2 {[%clk 0:02:43]}  d5 {[%clk 0:02:52]} 7. exd5 {[%clk 0:02:44]}  Nxd5 {[%clk 0:02:51]} 8. d4 {[%clk 0:02:44]}  cxd4 {[%clk 0:02:45]} 9. Nxd4 {[%clk 0:02:45]}  Be7 {[%clk 0:02:41]} 10. Nxc6 {[%clk 0:02:42]}  bxc6 {[%clk 0:02:41]} 11. c4 {[%clk 0:02:42]}  Nb4 {[%clk 0:02:37]} 12. Nc3 {[%clk 0:02:37]}  a5 {[%clk 0:02:19]} 13. a3 {[%clk 0:02:27]}  Na6 {[%clk 0:02:09]} 14. Qxd8+ {[%clk 0:02:26]}  Bxd8 {[%clk 0:02:08]} 15. b4 {[%clk 0:02:26]}  Bf6 {[%clk 0:02:03]} 16. Bd2 {[%clk 0:02:16]}  axb4 {[%clk 0:01:54]} 17. axb4 {[%clk 0:02:15]}  Rb8 {[%clk 0:01:54]} 18. b5 {[%clk 0:01:41]}  cxb5 {[%clk 0:01:53]} 19. cxb5 {[%clk 0:01:42]}  Nc5 {[%clk 0:01:52]} 20. Rab1 {[%clk 0:01:42]}  O-O {[%clk 0:01:50]} 21. Rfc1 {[%clk 0:01:42]}  Rd8 {[%clk 0:01:49]} 22. Be3 {[%clk 0:01:36]}  Nd3 {[%clk 0:01:30]} 23. Bxd3 {[%clk 0:01:32]}  Rxd3 {[%clk 0:01:31]} 24. Ne4 {[%clk 0:01:32]}  Be7 {[%clk 0:01:07]} 25. Bf4 {[%clk 0:01:09]}  Ra8 {[%clk 0:01:03]} 26. b6 {[%clk 0:00:32]}  Bb7 {[%clk 0:00:30]} 27. Rc7 {[%clk 0:00:32]}  Bxe4 {[%clk 0:00:30]} 28. Rxe7 {[%clk 0:00:32]}  Rb3 {[%clk 0:00:30]} 29. Re1 {[%clk 0:00:17]}  Rxb6 {[%clk 0:00:26]} 30. h4 {[%clk 0:00:17]}  Bd5 {[%clk 0:00:24]} 31. Rc1 {[%clk 0:00:17]}  Rc6 {[%clk 0:00:19]} 32. Rb1 {[%clk 0:00:15]}  h6 {[%clk 0:00:18]} 33. Reb7 {[%clk 0:00:12]}  Ra4 {[%clk 0:00:13]} 34. Rb8+ {[%clk 0:00:11]}  Kh7 {[%clk 0:00:13]} 35. Bg3 {[%clk 0:00:12]}  Rca6 {[%clk 0:00:11]} 36. Rc1 {[%clk 0:00:11]}  Ra1 {[%clk 0:00:09]} 37. Rxa1 {[%clk 0:00:11]}  Rxa1+ {[%clk 0:00:10]} 38. Kh2 {[%clk 0:00:12]}  Ra4 {[%clk 0:00:09]} 39. Rc8 {[%clk 0:00:12]}  h5 {[%clk 0:00:09]} 40. Rc7 {[%clk 0:00:12]}  Kg6 {[%clk 0:00:10]} 41. Rc3 {[%clk 0:00:13]}  Rb4 {[%clk 0:00:09]} 42. Re3 {[%clk 0:00:13]}  Ra4 {[%clk 0:00:09]} 43. Rxe6+ {[%clk 0:00:14]}  Bxe6 {[%clk 0:00:08]} 0-1


[Site "https://www.chess.com"]

[Event "Titled Tuesday Blitz May 30 Late 2023"]
[White "Moroni, Luca Jr"]
[Black "Arabidze, Meri"]
[WhiteFideId "865834"]
[BlackFideId "13604040"]
[WhiteElo "2569"]
[BlackElo "2405"]
[Result "1-0"]
[Round "03"]
[TimeControl "180+2"]
[Date "2023.05.31"]
[WhiteClock "0:00:34"]
[BlackClock "0:00:02"]

1. d4 {[%clk 0:03:00]}  f5 {[%clk 0:02:59]} 2. g3 {[%clk 0:03:00]}  e6 {[%clk 0:02:59]} 3. Bg2 {[%clk 0:03:00]}  Nf6 {[%clk 0:03:00]} 4. Nf3 {[%clk 0:03:00]}  d5 {[%clk 0:03:00]} 5. O-O {[%clk 0:03:00]}  Bd6 {[%clk 0:03:01]} 6. b3 {[%clk 0:03:01]}  Qe7 {[%clk 0:03:00]} 7. Bb2 {[%clk 0:03:01]}  O-O {[%clk 0:02:56]} 8. Nbd2 {[%clk 0:03:01]}  c6 {[%clk 0:02:55]} 9. c4 {[%clk 0:03:01]}  b6 {[%clk 0:02:53]} 10. Ne5 {[%clk 0:03:01]}  Bb7 {[%clk 0:02:53]} 11. e3 {[%clk 0:03:00]}  a5 {[%clk 0:02:53]} 12. a4 {[%clk 0:03:00]}  Na6 {[%clk 0:02:53]} 13. cxd5 {[%clk 0:02:57]}  exd5 {[%clk 0:02:47]} 14. Rc1 {[%clk 0:02:51]}  Rac8 {[%clk 0:02:42]} 15. Ndf3 {[%clk 0:02:48]}  Ne4 {[%clk 0:02:41]} 16. Ne1 {[%clk 0:02:46]}  Nb4 {[%clk 0:02:34]} 17. N1d3 {[%clk 0:02:45]}  Ba6 {[%clk 0:02:01]} 18. Nxb4 {[%clk 0:02:41]}  axb4 {[%clk 0:02:01]} 19. Re1 {[%clk 0:02:32]}  Bxe5 {[%clk 0:01:46]} 20. dxe5 {[%clk 0:02:32]}  Rfd8 {[%clk 0:01:47]} 21. Bh3 {[%clk 0:02:18]}  g6 {[%clk 0:01:41]} 22. Bg2 {[%clk 0:02:10]}  c5 {[%clk 0:01:17]} 23. h4 {[%clk 0:02:07]}  h5 {[%clk 0:01:08]} 24. Qf3 {[%clk 0:02:00]}  Bb7 {[%clk 0:01:04]} 25. Red1 {[%clk 0:01:57]}  Kh7 {[%clk 0:00:59]} 26. Qf4 {[%clk 0:01:51]}  Re8 {[%clk 0:00:53]} 27. f3 {[%clk 0:01:37]}  Nc3 {[%clk 0:00:53]} 28. Bxc3 {[%clk 0:01:38]}  bxc3 {[%clk 0:00:53]} 29. Rxc3 {[%clk 0:01:39]}  Rcd8 {[%clk 0:00:37]} 30. Kf2 {[%clk 0:01:31]}  Qxe5 {[%clk 0:00:35]} 31. Qxe5 {[%clk 0:01:32]}  Rxe5 {[%clk 0:00:36]} 32. a5 {[%clk 0:01:31]}  Re6 {[%clk 0:00:23]} 33. f4 {[%clk 0:01:20]}  Kh6 {[%clk 0:00:23]} 34. Rcc1 {[%clk 0:01:04]}  bxa5 {[%clk 0:00:17]} 35. Rxc5 {[%clk 0:01:04]}  Rb6 {[%clk 0:00:18]} 36. Rd3 {[%clk 0:01:03]}  Ra8 {[%clk 0:00:12]} 37. Rc7 {[%clk 0:01:02]}  Bc6 {[%clk 0:00:06]} 38. Rc3 {[%clk 0:00:56]}  Raa6 {[%clk 0:00:04]} 39. Bf3 {[%clk 0:00:47]}  a4 {[%clk 0:00:02]} 40. bxa4 {[%clk 0:00:47]}  Bxa4 {[%clk 0:00:02]} 41. Bxd5 {[%clk 0:00:45]}  Rb2+ {[%clk 0:00:02]} 42. Ke1 {[%clk 0:00:41]}  Rd6 {[%clk 0:00:02]} 43. Rd3 {[%clk 0:00:35]}  Rg2 {[%clk 0:00:02]} 44. Bg8 {[%clk 0:00:34]} 1-0


[Site "https://www.chess.com"]

[Event "Titled Tuesday Blitz May 30 Late 2023"]
[White "Ibadov, Dashgyn"]
[Black "Terry, Renato"]
[WhiteFideId "24107514"]
[BlackFideId "3803457"]
[WhiteElo "2208"]
[BlackElo "2575"]
[Result "1-0"]
[Round "03"]
[TimeControl "180+2"]
[Date "2023.05.31"]
[WhiteClock "0:00:24"]
[BlackClock "0:00:02"]

1. e4 {[%clk 0:03:00]}  e6 {[%clk 0:02:59]} 2. d4 {[%clk 0:03:01]}  d5 {[%clk 0:02:59]} 3. Nc3 {[%clk 0:03:02]}  Nf6 {[%clk 0:02:59]} 4. e5 {[%clk 0:03:02]}  Nfd7 {[%clk 0:03:00]} 5. Nce2 {[%clk 0:03:02]}  c5 {[%clk 0:03:00]} 6. c3 {[%clk 0:03:03]}  cxd4 {[%clk 0:03:01]} 7. cxd4 {[%clk 0:03:02]}  f6 {[%clk 0:03:01]} 8. Nf3 {[%clk 0:02:48]}  fxe5 {[%clk 0:02:53]} 9. dxe5 {[%clk 0:02:48]}  Nc6 {[%clk 0:02:52]} 10. Nf4 {[%clk 0:02:41]}  Bb4+ {[%clk 0:02:45]} 11. Bd2 {[%clk 0:02:40]}  O-O {[%clk 0:02:14]} 12. Bxb4 {[%clk 0:02:33]}  Rxf4 {[%clk 0:01:48]} 13. Bc3 {[%clk 0:02:25]}  Ndxe5 {[%clk 0:01:25]} 14. Nxe5 {[%clk 0:02:25]}  Nxe5 {[%clk 0:01:25]} 15. Be2 {[%clk 0:02:25]}  d4 {[%clk 0:01:19]} 16. O-O {[%clk 0:02:15]}  Qf6 {[%clk 0:01:13]} 17. Bd2 {[%clk 0:01:55]}  Rh4 {[%clk 0:01:08]} 18. f4 {[%clk 0:01:50]}  Nc6 {[%clk 0:00:47]} 19. Bf3 {[%clk 0:01:47]}  Rh6 {[%clk 0:00:41]} 20. f5 {[%clk 0:01:30]}  exf5 {[%clk 0:00:38]} 21. Bxh6 {[%clk 0:01:29]}  gxh6 {[%clk 0:00:37]} 22. Qb3+ {[%clk 0:01:21]}  Kh8 {[%clk 0:00:35]} 23. Rae1 {[%clk 0:01:19]}  Ne5 {[%clk 0:00:11]} 24. Qd5 {[%clk 0:00:54]}  Nf7 {[%clk 0:00:11]} 25. Re8+ {[%clk 0:00:51]}  Kg7 {[%clk 0:00:11]} 26. Rfe1 {[%clk 0:00:39]}  d3 {[%clk 0:00:06]} 27. Qxd3 {[%clk 0:00:31]}  Rb8 {[%clk 0:00:05]} 28. Qa3 {[%clk 0:00:27]}  Qd6 {[%clk 0:00:03]} 29. Qc3+ {[%clk 0:00:24]}  Qf6 {[%clk 0:00:02]} 30. Rg8+ {[%clk 0:00:23]}  Kxg8 {[%clk 0:00:02]} 31. Qxf6 {[%clk 0:00:24]} 1-0


[Site "https://www.chess.com"]

[Event "Titled Tuesday Blitz May 30 Late 2023"]
[White "Xiong, Jeffery"]
[Black "Zheng, Richard"]
[WhiteFideId "2047640"]
[BlackFideId "2624893"]
[WhiteElo "2726"]
[BlackElo "2642"]
[Result "1-0"]
[Round "03"]
[TimeControl "180+2"]
[Date "2023.05.31"]
[WhiteClock "0:00:29"]
[BlackClock "0:00:03"]

1. e4 {[%clk 0:03:00]}  c6 {[%clk 0:03:00]} 2. Nf3 {[%clk 0:03:00]}  d5 {[%clk 0:03:01]} 3. d3 {[%clk 0:03:01]}  g6 {[%clk 0:02:59]} 4. e5 {[%clk 0:03:01]}  Bf5 {[%clk 0:02:56]} 5. d4 {[%clk 0:03:00]}  e6 {[%clk 0:02:57]} 6. Be2 {[%clk 0:02:55]}  c5 {[%clk 0:02:57]} 7. c3 {[%clk 0:02:55]}  Nc6 {[%clk 0:02:57]} 8. O-O {[%clk 0:02:55]}  h5 {[%clk 0:02:54]} 9. Be3 {[%clk 0:02:54]}  Bh6 {[%clk 0:02:48]} 10. Bxh6 {[%clk 0:02:51]}  Nxh6 {[%clk 0:02:49]} 11. h3 {[%clk 0:02:44]}  cxd4 {[%clk 0:02:43]} 12. cxd4 {[%clk 0:02:44]}  Bxb1 {[%clk 0:02:38]} 13. Rxb1 {[%clk 0:02:42]}  Nf5 {[%clk 0:02:39]} 14. Qd2 {[%clk 0:02:41]}  Qa5 {[%clk 0:02:30]} 15. b4 {[%clk 0:02:41]}  Qb6 {[%clk 0:02:31]} 16. Rfd1 {[%clk 0:02:41]}  h4 {[%clk 0:02:15]} 17. a4 {[%clk 0:02:35]}  O-O {[%clk 0:02:00]} 18. b5 {[%clk 0:02:35]}  Na5 {[%clk 0:01:57]} 19. Bd3 {[%clk 0:02:35]}  Nc4 {[%clk 0:01:47]} 20. Qf4 {[%clk 0:02:33]}  Rac8 {[%clk 0:01:18]} 21. Bxf5 {[%clk 0:02:31]}  exf5 {[%clk 0:01:18]} 22. Qxh4 {[%clk 0:02:20]}  Kg7 {[%clk 0:01:17]} 23. Ng5 {[%clk 0:02:14]}  Rh8 {[%clk 0:01:15]} 24. Qf4 {[%clk 0:02:14]}  Qa5 {[%clk 0:01:07]} 25. Ra1 {[%clk 0:02:15]}  Nb2 {[%clk 0:01:03]} 26. Rd2 {[%clk 0:02:12]}  Qc3 {[%clk 0:00:52]} 27. Ra2 {[%clk 0:01:41]}  Qc1+ {[%clk 0:00:25]} 28. Kh2 {[%clk 0:01:41]}  Nc4 {[%clk 0:00:25]} 29. Rac2 {[%clk 0:01:42]}  Qb1 {[%clk 0:00:20]} 30. Re2 {[%clk 0:01:36]}  Na3 {[%clk 0:00:20]} 31. Rxc8 {[%clk 0:01:33]}  Rxc8 {[%clk 0:00:21]} 32. e6 {[%clk 0:01:33]}  f6 {[%clk 0:00:21]} 33. e7 {[%clk 0:01:34]}  Re8 {[%clk 0:00:16]} 34. Ne6+ {[%clk 0:01:31]}  Kf7 {[%clk 0:00:16]} 35. Nd8+ {[%clk 0:01:32]}  Kg7 {[%clk 0:00:17]} 36. Nxb7 {[%clk 0:01:32]}  Nc4 {[%clk 0:00:11]} 37. Nc5 {[%clk 0:01:09]}  Qf1 {[%clk 0:00:09]} 38. Re6 {[%clk 0:01:04]}  Qd1 {[%clk 0:00:06]} 39. g4 {[%clk 0:00:58]}  Nd2 {[%clk 0:00:05]} 40. gxf5 {[%clk 0:00:53]}  Nf3+ {[%clk 0:00:06]} 41. Kg2 {[%clk 0:00:51]}  Ne1+ {[%clk 0:00:04]} 42. Kg3 {[%clk 0:00:50]}  g5 {[%clk 0:00:05]} 43. Qg4 {[%clk 0:00:49]}  Qc1 {[%clk 0:00:03]} 44. h4 {[%clk 0:00:33]}  Nc2 {[%clk 0:00:02]} 45. Kg2 {[%clk 0:00:30]}  Ne1+ {[%clk 0:00:02]} 46. Kh2 {[%clk 0:00:30]}  Nc2 {[%clk 0:00:03]} 47. Nd3 {[%clk 0:00:26]}  Qd2 {[%clk 0:00:03]} 48. Qh5 {[%clk 0:00:26]}  Qxd3 {[%clk 0:00:02]} 49. Qg6+ {[%clk 0:00:27]}  Kh8 {[%clk 0:00:01]} 50. Qxe8+ {[%clk 0:00:28]}  Kg7 {[%clk 0:00:02]} 51. Qg6+ {[%clk 0:00:28]}  Kh8 {[%clk 0:00:03]} 52. e8=Q# {[%clk 0:00:29]} 1-0


[Site "https://www.chess.com"]

[Event "Titled Tuesday Blitz May 30 Late 2023"]
[White "Zhao, Erick"]
[Black "Zhigalko, Sergei"]
[WhiteFideId "30946930"]
[BlackFideId "13502956"]
[WhiteElo "2636"]
[BlackElo "2626"]
[Result "0-1"]
[Round "03"]
[TimeControl "180+2"]
[Date "2023.05.31"]
[WhiteClock "0:00:56"]
[BlackClock "0:00:04"]

1. b3 {[%clk 0:03:00]}  e5 {[%clk 0:02:59]} 2. Bb2 {[%clk 0:03:01]}  Nc6 {[%clk 0:02:58]} 3. c4 {[%clk 0:03:01]}  Nf6 {[%clk 0:02:58]} 4. Nc3 {[%clk 0:03:02]}  Bc5 {[%clk 0:02:53]} 5. e3 {[%clk 0:03:02]}  O-O {[%clk 0:02:52]} 6. Nge2 {[%clk 0:03:03]}  Re8 {[%clk 0:02:52]} 7. g3 {[%clk 0:03:03]}  d5 {[%clk 0:02:36]} 8. Bg2 {[%clk 0:02:37]}  d4 {[%clk 0:02:31]} 9. Na4 {[%clk 0:02:33]}  Bf8 {[%clk 0:02:09]} 10. exd4 {[%clk 0:02:30]}  Nxd4 {[%clk 0:02:04]} 11. O-O {[%clk 0:02:29]}  Bg4 {[%clk 0:02:04]} 12. f3 {[%clk 0:02:29]}  Bf5 {[%clk 0:01:53]} 13. Nxd4 {[%clk 0:02:09]}  exd4 {[%clk 0:01:54]} 14. Re1 {[%clk 0:01:59]}  Qd7 {[%clk 0:01:47]} 15. Rxe8 {[%clk 0:01:44]}  Rxe8 {[%clk 0:01:47]} 16. Qf1 {[%clk 0:01:45]}  a6 {[%clk 0:01:28]} 17. c5 {[%clk 0:01:35]}  h5 {[%clk 0:01:06]} 18. Re1 {[%clk 0:01:33]}  Bd3 {[%clk 0:00:53]} 19. Qf2 {[%clk 0:01:31]}  Rxe1+ {[%clk 0:00:53]} 20. Qxe1 {[%clk 0:01:32]}  Bb5 {[%clk 0:00:53]} 21. Qe5 {[%clk 0:01:26]}  Bxa4 {[%clk 0:00:45]} 22. bxa4 {[%clk 0:01:27]}  Qxa4 {[%clk 0:00:45]} 23. Bxd4 {[%clk 0:01:25]}  Qd1+ {[%clk 0:00:35]} 24. Bf1 {[%clk 0:01:25]}  Qxd2 {[%clk 0:00:36]} 25. Be3 {[%clk 0:01:24]}  Qxa2 {[%clk 0:00:31]} 26. Qxc7 {[%clk 0:01:24]}  Nd5 {[%clk 0:00:31]} 27. Qe5 {[%clk 0:01:14]}  Nxe3 {[%clk 0:00:31]} 28. Qxe3 {[%clk 0:01:15]}  Qc2 {[%clk 0:00:27]} 29. Qe2 {[%clk 0:01:12]}  Bxc5+ {[%clk 0:00:24]} 30. Kg2 {[%clk 0:01:13]}  Qxe2+ {[%clk 0:00:24]} 31. Bxe2 {[%clk 0:01:14]}  Kf8 {[%clk 0:00:15]} 32. f4 {[%clk 0:01:14]}  g6 {[%clk 0:00:15]} 33. Kf3 {[%clk 0:01:15]}  Ke7 {[%clk 0:00:13]} 34. Ke4 {[%clk 0:01:14]}  f5+ {[%clk 0:00:08]} 35. Kf3 {[%clk 0:01:08]}  b5 {[%clk 0:00:06]} 36. h3 {[%clk 0:01:08]}  Kd6 {[%clk 0:00:04]} 37. g4 {[%clk 0:01:08]}  fxg4+ {[%clk 0:00:04]} 38. hxg4 {[%clk 0:01:09]}  hxg4+ {[%clk 0:00:03]} 39. Kxg4 {[%clk 0:01:10]}  Be3 {[%clk 0:00:04]} 40. Bd3 {[%clk 0:01:10]}  Kc5 {[%clk 0:00:03]} 41. Bxg6 {[%clk 0:01:10]}  Kd4 {[%clk 0:00:03]} 42. Kf3 {[%clk 0:01:04]}  Bc1 {[%clk 0:00:02]} 43. Be8 {[%clk 0:01:03]}  Kc3 {[%clk 0:00:02]} 44. f5 {[%clk 0:01:03]}  Bg5 {[%clk 0:00:01]} 45. Ke2 {[%clk 0:01:01]}  b4 {[%clk 0:00:02]} 46. Bf7 {[%clk 0:00:55]}  Kb2 {[%clk 0:00:01]} 47. Kd1 {[%clk 0:00:56]}  b3 {[%clk 0:00:01]} 48. Bc4 {[%clk 0:00:56]}  Kc3 {[%clk 0:00:02]} 49. Bd5 {[%clk 0:00:54]}  a5 {[%clk 0:00:02]} 50. Be6 {[%clk 0:00:54]}  a4 {[%clk 0:00:03]} 51. f6 {[%clk 0:00:54]}  Bxf6 {[%clk 0:00:03]} 52. Ke2 {[%clk 0:00:55]}  a3 {[%clk 0:00:03]} 53. Kf3 {[%clk 0:00:56]}  a2 {[%clk 0:00:04]} 0-1


[Site "https://www.chess.com"]

[Event "Titled Tuesday Blitz May 30 Late 2023"]
[White "Isajevsky, Anton"]
[Black "Durarbayli, Vasif"]
[WhiteFideId "4142500"]
[BlackFideId "13402935"]
[WhiteElo "2510"]
[BlackElo "2551"]
[Result "0-1"]
[Round "03"]
[TimeControl "180+2"]
[Date "2023.05.31"]
[WhiteClock "0:00:24"]
[BlackClock "0:01:14"]

1. c4 {[%clk 0:02:59]}  c5 {[%clk 0:02:59]} 2. Nc3 {[%clk 0:02:54]}  Nf6 {[%clk 0:02:58]} 3. Nf3 {[%clk 0:02:54]}  e6 {[%clk 0:02:59]} 4. g3 {[%clk 0:02:53]}  b6 {[%clk 0:02:59]} 5. Bg2 {[%clk 0:02:53]}  Bb7 {[%clk 0:02:59]} 6. O-O {[%clk 0:02:54]}  Be7 {[%clk 0:03:00]} 7. Re1 {[%clk 0:02:53]}  d6 {[%clk 0:02:57]} 8. e4 {[%clk 0:02:52]}  a6 {[%clk 0:02:57]} 9. d3 {[%clk 0:02:51]}  Nbd7 {[%clk 0:02:56]} 10. Ng5 {[%clk 0:02:51]}  Qc7 {[%clk 0:02:50]} 11. f4 {[%clk 0:02:51]}  Bc6 {[%clk 0:02:42]} 12. Nh3 {[%clk 0:02:30]}  b5 {[%clk 0:02:41]} 13. g4 {[%clk 0:02:29]}  b4 {[%clk 0:02:29]} 14. Nb1 {[%clk 0:02:07]}  h6 {[%clk 0:02:26]} 15. Nd2 {[%clk 0:01:58]}  a5 {[%clk 0:02:25]} 16. Nf2 {[%clk 0:01:54]}  g5 {[%clk 0:02:20]} 17. Nf3 {[%clk 0:01:44]}  gxf4 {[%clk 0:02:15]} 18. Bxf4 {[%clk 0:01:45]}  Ne5 {[%clk 0:02:15]} 19. h3 {[%clk 0:01:43]}  Nfd7 {[%clk 0:02:11]} 20. Nh1 {[%clk 0:01:30]}  h5 {[%clk 0:02:01]} 21. Nxe5 {[%clk 0:01:20]}  dxe5 {[%clk 0:01:56]} 22. Be3 {[%clk 0:01:07]}  hxg4 {[%clk 0:01:56]} 23. hxg4 {[%clk 0:00:54]}  O-O-O {[%clk 0:01:57]} 24. Ng3 {[%clk 0:00:48]}  Bh4 {[%clk 0:01:51]} 25. Bf2 {[%clk 0:00:46]}  Rdg8 {[%clk 0:01:48]} 26. Bf3 {[%clk 0:00:39]}  Qb7 {[%clk 0:01:33]} 27. Kg2 {[%clk 0:00:37]}  f5 {[%clk 0:01:24]} 28. exf5 {[%clk 0:00:35]}  exf5 {[%clk 0:01:18]} 29. gxf5 {[%clk 0:00:23]}  Rxg3+ {[%clk 0:01:14]} 30. Bxg3 {[%clk 0:00:24]}  Rg8 {[%clk 0:01:14]} 0-1


[Site "https://www.chess.com"]

[Event "Titled Tuesday Blitz May 30 Late 2023"]
[White "Sanal, Vahap"]
[Black "Principe, Gerson"]
[WhiteFideId "6300545"]
[BlackFideId "3804550"]
[WhiteElo "2606"]
[BlackElo "2229"]
[Result "0-1"]
[Round "03"]
[TimeControl "180+2"]
[Date "2023.05.31"]
[WhiteClock "0:00:31"]
[BlackClock "0:00:05"]

1. Nf3 {[%clk 0:02:54]}  Nf6 {[%clk 0:02:58]} 2. b3 {[%clk 0:02:55]}  e6 {[%clk 0:02:54]} 3. Bb2 {[%clk 0:02:55]}  d5 {[%clk 0:02:54]} 4. g3 {[%clk 0:02:48]}  Be7 {[%clk 0:02:51]} 5. Bg2 {[%clk 0:02:46]}  O-O {[%clk 0:02:51]} 6. O-O {[%clk 0:02:45]}  a5 {[%clk 0:02:50]} 7. a4 {[%clk 0:02:44]}  c6 {[%clk 0:02:47]} 8. d3 {[%clk 0:02:43]}  b5 {[%clk 0:02:40]} 9. Nbd2 {[%clk 0:02:41]}  b4 {[%clk 0:02:37]} 10. e4 {[%clk 0:02:40]}  Ba6 {[%clk 0:02:37]} 11. Re1 {[%clk 0:02:40]}  Re8 {[%clk 0:02:31]} 12. Ne5 {[%clk 0:02:37]}  Bb7 {[%clk 0:02:23]} 13. Qe2 {[%clk 0:02:32]}  Nbd7 {[%clk 0:02:14]} 14. Nef3 {[%clk 0:02:25]}  Nb6 {[%clk 0:02:12]} 15. Rad1 {[%clk 0:02:25]}  Rc8 {[%clk 0:02:06]} 16. h4 {[%clk 0:02:26]}  c5 {[%clk 0:02:04]} 17. e5 {[%clk 0:02:21]}  Nfd7 {[%clk 0:02:03]} 18. h5 {[%clk 0:02:22]}  Qc7 {[%clk 0:02:00]} 19. h6 {[%clk 0:02:22]}  g6 {[%clk 0:02:00]} 20. Nf1 {[%clk 0:02:22]}  c4 {[%clk 0:01:59]} 21. Bd4 {[%clk 0:02:22]}  Nc5 {[%clk 0:01:51]} 22. Qe3 {[%clk 0:02:22]}  Ncd7 {[%clk 0:01:45]} 23. N1h2 {[%clk 0:02:21]}  Ba6 {[%clk 0:01:39]} 24. Ng4 {[%clk 0:02:21]}  Rb8 {[%clk 0:01:17]} 25. Qf4 {[%clk 0:02:20]}  cxb3 {[%clk 0:01:13]} 26. cxb3 {[%clk 0:02:18]}  Qd8 {[%clk 0:01:13]} 27. Bh3 {[%clk 0:02:07]}  Rc8 {[%clk 0:01:01]} 28. Rd2 {[%clk 0:02:00]}  Rc6 {[%clk 0:00:58]} 29. Kg2 {[%clk 0:01:51]}  Nc5 {[%clk 0:00:51]} 30. Bxc5 {[%clk 0:01:45]}  Rxc5 {[%clk 0:00:51]} 31. Nf6+ {[%clk 0:01:40]}  Bxf6 {[%clk 0:00:51]} 32. exf6 {[%clk 0:01:41]}  Qc7 {[%clk 0:00:35]} 33. Ne5 {[%clk 0:01:41]}  Nd7 {[%clk 0:00:31]} 34. d4 {[%clk 0:01:20]}  Rc3 {[%clk 0:00:26]} 35. Re3 {[%clk 0:01:02]}  Rxe3 {[%clk 0:00:21]} 36. fxe3 {[%clk 0:01:02]}  Nxe5 {[%clk 0:00:21]} 37. dxe5 {[%clk 0:01:01]}  Qc3 {[%clk 0:00:18]} 38. Qd4 {[%clk 0:01:01]}  Rc8 {[%clk 0:00:17]} 39. Rf2 {[%clk 0:00:59]}  Qxd4 {[%clk 0:00:14]} 40. exd4 {[%clk 0:01:00]}  Rc3 {[%clk 0:00:14]} 41. Rf3 {[%clk 0:00:56]}  Bd3 {[%clk 0:00:09]} 42. Re3 {[%clk 0:00:44]}  Bc2 {[%clk 0:00:07]} 43. Rxc3 {[%clk 0:00:38]}  bxc3 {[%clk 0:00:07]} 44. Kf2 {[%clk 0:00:39]}  Bxb3 {[%clk 0:00:07]} 45. Ke3 {[%clk 0:00:40]}  Bxa4 {[%clk 0:00:07]} 46. Kd3 {[%clk 0:00:38]}  c2 {[%clk 0:00:05]} 47. Kd2 {[%clk 0:00:39]}  Bb3 {[%clk 0:00:05]} 48. Bf1 {[%clk 0:00:34]}  a4 {[%clk 0:00:06]} 49. Bd3 {[%clk 0:00:34]}  a3 {[%clk 0:00:02]} 50. Bxc2 {[%clk 0:00:29]}  a2 {[%clk 0:00:02]} 51. Bxb3 {[%clk 0:00:30]}  a1=Q {[%clk 0:00:03]} 52. Kd3 {[%clk 0:00:31]}  Qa3 {[%clk 0:00:03]} 53. Kc3 {[%clk 0:00:31]}  Qa5+ {[%clk 0:00:04]} 54. Kc2 {[%clk 0:00:31]}  Qb6 {[%clk 0:00:05]} 55. Kc3 {[%clk 0:00:31]}  Qc7+ {[%clk 0:00:04]} 56. Kb2 {[%clk 0:00:31]}  Qa5 {[%clk 0:00:05]} 57. g4 {[%clk 0:00:29]}  Qe1 {[%clk 0:00:06]} 58. g5 {[%clk 0:00:30]}  Qg3 {[%clk 0:00:04]} 59. Ka3 {[%clk 0:00:31]}  Qxg5 {[%clk 0:00:04]} 60. Kb4 {[%clk 0:00:32]}  Qxh6 {[%clk 0:00:05]} 61. Kc5 {[%clk 0:00:32]}  Qe3 {[%clk 0:00:06]} 62. Bxd5 {[%clk 0:00:32]}  exd5 {[%clk 0:00:05]} 63. Kxd5 {[%clk 0:00:32]}  h5 {[%clk 0:00:05]} 64. Kc5 {[%clk 0:00:33]}  h4 {[%clk 0:00:05]} 65. Kc6 {[%clk 0:00:31]}  Qxd4 {[%clk 0:00:05]} 0-1


[Site "https://www.chess.com"]